[Event "*** Titled Tuesday Blitz"]
[Site "Chess.com"]
[Date "2020.03.03"]
[Round "3"]
[White "dlp300"]
[Black "GelmanAlexander"]
[Result "1-0"]
[WhiteElo "2694"]
[BlackElo "2470"]
[TimeControl "180+1"]
[EndTime "9:29:54 PST"]
[Termination "dlp300 won on time"]

1. e4 {[%clk 0:03:00.7]} 1... c5 {[%clk 0:02:58.6]} 2. Nf3 {[%clk 0:03:01.1]}
2... e6 {[%clk 0:02:58.7]} 3. d4 {[%clk 0:03:01.3]} 3... cxd4 {[%clk 0:02:58.8]}
4. Nxd4 {[%clk 0:03:02.2]} 4... d6 {[%clk 0:02:59.2]} 5. g3 {[%clk 0:03:01.9]}
5... Nf6 {[%clk 0:02:56.7]} 6. Bg2 {[%clk 0:03:00.6]} 6... a6 {[%clk 0:02:56.6]}
7. O-O {[%clk 0:02:59.9]} 7... Be7 {[%clk 0:02:52.9]} 8. Nc3 {[%clk 0:02:59]}
8... Qc7 {[%clk 0:02:52.9]} 9. h3 {[%clk 0:02:57.6]} 9... Nc6 {[%clk 0:02:52.7]}
10. Nde2 {[%clk 0:02:57.3]} 10... O-O {[%clk 0:02:51.4]} 11. a4 {[%clk
0:02:57.2]} 11... Re8 {[%clk 0:02:45.3]} 12. g4 {[%clk 0:02:56.1]} 12... Rb8
{[%clk 0:02:39.9]} 13. Ng3 {[%clk 0:02:50.3]} 13... b5 {[%clk 0:02:38.3]} 14.
axb5 {[%clk 0:02:47.6]} 14... axb5 {[%clk 0:02:39.2]} 15. g5 {[%clk 0:02:46.5]}
15... Nd7 {[%clk 0:02:39]} 16. f4 {[%clk 0:02:45.3]} 16... b4 {[%clk 0:02:38.1]}
17. Nce2 {[%clk 0:02:45.4]} 17... Bf8 {[%clk 0:02:32.8]} 18. Kh1 {[%clk
0:02:44]} 18... Bb7 {[%clk 0:02:00.1]} 19. b3 {[%clk 0:02:38]} 19... Rbc8 {[%clk
0:01:40.7]} 20. Bb2 {[%clk 0:02:35.6]} 20... d5 {[%clk 0:01:23.8]} 21. e5 {[%clk
0:02:21.5]} 21... Nc5 {[%clk 0:00:56.1]} 22. h4 {[%clk 0:02:18.6]} 22... d4
{[%clk 0:00:53.8]} 23. Nc1 {[%clk 0:02:10.2]} 23... d3 {[%clk 0:00:42.2]} 24.
Nxd3 {[%clk 0:02:09.7]} 24... Red8 {[%clk 0:00:40.6]} 25. Qe2 {[%clk 0:02:02.1]}
25... Nxd3 {[%clk 0:00:29.7]} 26. cxd3 {[%clk 0:02:03]} 26... Ne7 {[%clk
0:00:26.1]} 27. Ne4 {[%clk 0:01:57.3]} 27... Nf5 {[%clk 0:00:25.2]} 28. Rac1
{[%clk 0:01:52]} 28... Bxe4 {[%clk 0:00:20.6]} 29. Rxc7 {[%clk 0:01:31.5]} 29...
Ng3+ {[%clk 0:00:20.1]} 30. Kh2 {[%clk 0:01:32]} 30... Nxe2 {[%clk 0:00:18.9]}
31. Rxc8 {[%clk 0:01:31.6]} 31... Rxc8 {[%clk 0:00:19]} 32. dxe4 {[%clk
0:01:22.7]} 32... Rc2 {[%clk 0:00:19]} 33. Ba1 {[%clk 0:01:23.2]} 33... g6
{[%clk 0:00:13.1]} 34. f5 {[%clk 0:01:22.6]} 34... Bc5 {[%clk 0:00:11.2]} 35.
Kh3 {[%clk 0:01:21.8]} 35... Nc3 {[%clk 0:00:07.6]} 36. Bf3 {[%clk 0:01:19]}
36... Bd4 {[%clk 0:00:07.5]} 37. Bg4 {[%clk 0:01:17.6]} 37... exf5 {[%clk
0:00:06.9]} 38. exf5 {[%clk 0:01:18.5]} 38... Bxe5 {[%clk 0:00:07.8]} 39. Rh1
{[%clk 0:01:15.6]} 39... Ne4 {[%clk 0:00:06.5]} 40. Bxe5 {[%clk 0:01:12.6]}
40... Nf2+ {[%clk 0:00:06.9]} 41. Kg2 {[%clk 0:01:12.1]} 41... Nxg4+ {[%clk
0:00:06.7]} 42. Kf3 {[%clk 0:01:12.7]} 42... Nxe5+ {[%clk 0:00:07.2]} 43. Ke4
{[%clk 0:01:13.1]} 43... Nd7 {[%clk 0:00:05.3]} 44. f6 {[%clk 0:01:11.2]} 44...
Nc5+ {[%clk 0:00:04.4]} 45. Kd5 {[%clk 0:01:11.2]} 45... Nxb3 {[%clk 0:00:04.7]}
46. Re1 {[%clk 0:01:09.6]} 46... Rc8 {[%clk 0:00:04.3]} 47. Rb1 {[%clk
0:01:08.7]} 47... Nc5 {[%clk 0:00:02.1]} 48. Rxb4 {[%clk 0:01:07.4]} 48... Ne6
{[%clk 0:00:02.7]} 49. Rb7 {[%clk 0:01:05.3]} 49... h6 {[%clk 0:00:03.2]} 50.
gxh6 {[%clk 0:01:04]} 50... Rc5+ {[%clk 0:00:02.2]} 51. Kd6 {[%clk 0:01:03.7]}
51... Rf5 {[%clk 0:00:01.4]} 52. Ke7 {[%clk 0:01:03.1]} 1-0

[Event "*** Titled Tuesday Blitz"]
[Site "Chess.com"]
[Date "2020.03.03"]
[Round "3"]
[White "MathiasWomacka"]
[Black "bangchess21"]
[Result "1/2-1/2"]
[WhiteElo "2410"]
[BlackElo "2595"]
[TimeControl "180+1"]
[EndTime "9:29:54 PST"]
[Termination "Game drawn by repetition"]

1. e4 {[%clk 0:03:00.9]} 1... c5 {[%clk 0:02:59.4]} 2. Nf3 {[%clk 0:03:00.6]}
2... g6 {[%clk 0:02:59.7]} 3. d4 {[%clk 0:02:59.8]} 3... cxd4 {[%clk 0:02:59.8]}
4. Nxd4 {[%clk 0:03:00.7]} 4... Nc6 {[%clk 0:02:59.9]} 5. c4 {[%clk 0:03:00.6]}
5... Bg7 {[%clk 0:02:55.6]} 6. Be3 {[%clk 0:03:00.1]} 6... Nf6 {[%clk 0:02:56]}
7. Nc3 {[%clk 0:02:59.8]} 7... Ng4 {[%clk 0:02:56.4]} 8. Qxg4 {[%clk 0:02:58.8]}
8... Nxd4 {[%clk 0:02:56.8]} 9. Qd1 {[%clk 0:02:58.5]} 9... e5 {[%clk
0:02:57.2]} 10. Bd3 {[%clk 0:02:57.1]} 10... O-O {[%clk 0:02:56.1]} 11. O-O
{[%clk 0:02:56.8]} 11... b6 {[%clk 0:02:56.5]} 12. Qd2 {[%clk 0:02:47.7]} 12...
Bb7 {[%clk 0:02:55.2]} 13. f4 {[%clk 0:02:26.5]} 13... exf4 {[%clk 0:02:41.9]}
14. Bxf4 {[%clk 0:02:27.4]} 14... d6 {[%clk 0:02:42.2]} 15. Rad1 {[%clk
0:02:26.6]} 15... Ne6 {[%clk 0:02:10.7]} 16. Be3 {[%clk 0:02:08.4]} 16... Be5
{[%clk 0:02:04.7]} 17. Ne2 {[%clk 0:01:50.6]} 17... Nc5 {[%clk 0:01:42]} 18. Bg5
{[%clk 0:01:31]} 18... Qd7 {[%clk 0:01:36.1]} 19. Nc3 {[%clk 0:01:24.6]} 19...
Ne6 {[%clk 0:01:15.5]} 20. Bh6 {[%clk 0:01:20.2]} 20... Rfe8 {[%clk 0:01:11.6]}
21. Bb1 {[%clk 0:01:08.8]} 21... Qe7 {[%clk 0:01:06.7]} 22. Rf3 {[%clk
0:00:43.9]} 22... Rac8 {[%clk 0:01:01.4]} 23. Rdf1 {[%clk 0:00:32.8]} 23... f6
{[%clk 0:00:49.5]} 24. b3 {[%clk 0:00:32]} 24... Nd4 {[%clk 0:00:40.4]} 25. R3f2
{[%clk 0:00:31.1]} 25... a6 {[%clk 0:00:40.7]} 26. Be3 {[%clk 0:00:28.6]} 26...
Ne6 {[%clk 0:00:40.2]} 27. Bxb6 {[%clk 0:00:28.6]} 27... Nc5 {[%clk 0:00:32.7]}
28. b4 {[%clk 0:00:24.8]} 28... Bxc3 {[%clk 0:00:24.3]} 29. Qxc3 {[%clk
0:00:22.4]} 29... Na4 {[%clk 0:00:24.5]} 30. Qd4 {[%clk 0:00:20]} 30... Bxe4
{[%clk 0:00:24.1]} 31. Bxe4 {[%clk 0:00:09.7]} 31... Qxe4 {[%clk 0:00:22.6]} 32.
Qxf6 {[%clk 0:00:09.8]} 32... Nxb6 {[%clk 0:00:17.8]} 33. Qf7+ {[%clk
0:00:09.5]} 33... Kh8 {[%clk 0:00:18.3]} 34. Qf6+ {[%clk 0:00:09.2]} 34... Kg8
{[%clk 0:00:18.6]} 35. Qf7+ {[%clk 0:00:07.7]} 35... Kh8 {[%clk 0:00:18.8]} 36.
Qf6+ {[%clk 0:00:08.2]} 36... Kg8 {[%clk 0:00:19.3]} 1/2-1/2

[Event "*** Titled Tuesday Blitz"]
[Site "Chess.com"]
[Date "2020.03.03"]
[Round "3"]
[White "Fighterman91"]
[Black "DishonorOnYourCow"]
[Result "0-1"]
[WhiteElo "2750"]
[BlackElo "2298"]
[TimeControl "180+1"]
[EndTime "9:29:55 PST"]
[Termination "DishonorOnYourCow won by resignation"]

1. e4 {[%clk 0:03:00.9]} 1... e5 {[%clk 0:02:59.1]} 2. Nf3 {[%clk 0:03:00.5]}
2... Nc6 {[%clk 0:02:59.2]} 3. Bb5 {[%clk 0:02:59.7]} 3... Nf6 {[%clk
0:02:58.9]} 4. d3 {[%clk 0:02:58.5]} 4... Bc5 {[%clk 0:02:58.3]} 5. Bxc6 {[%clk
0:02:57.8]} 5... dxc6 {[%clk 0:02:57.6]} 6. O-O {[%clk 0:02:57.7]} 6... Nd7
{[%clk 0:02:57.6]} 7. Bg5 {[%clk 0:02:53.1]} 7... f6 {[%clk 0:02:57.2]} 8. Bh4
{[%clk 0:02:53.6]} 8... O-O {[%clk 0:02:56.7]} 9. c3 {[%clk 0:02:50.2]} 9... Re8
{[%clk 0:02:47.8]} 10. d4 {[%clk 0:02:37.3]} 10... exd4 {[%clk 0:02:47.6]} 11.
cxd4 {[%clk 0:02:37.1]} 11... Bf8 {[%clk 0:02:41.2]} 12. Nc3 {[%clk 0:02:27.1]}
12... c5 {[%clk 0:02:32.3]} 13. Qb3+ {[%clk 0:01:59.8]} 13... Kh8 {[%clk
0:02:31.4]} 14. Rad1 {[%clk 0:01:53.2]} 14... cxd4 {[%clk 0:02:28.8]} 15. Nxd4
{[%clk 0:01:46.8]} 15... Nc5 {[%clk 0:02:21.4]} 16. Qc2 {[%clk 0:01:44.6]} 16...
Qe7 {[%clk 0:02:14.5]} 17. b4 {[%clk 0:00:59.9]} 17... Ne6 {[%clk 0:02:01.3]}
18. Nd5 {[%clk 0:00:54]} 18... Qf7 {[%clk 0:02:01.3]} 19. Nf5 {[%clk 0:00:17.8]}
19... c6 {[%clk 0:01:53.5]} 20. Nde3 {[%clk 0:00:18.4]} 20... Bxb4 {[%clk
0:01:42.3]} 21. Nc4 {[%clk 0:00:19]} 21... Qh5 {[%clk 0:01:32.4]} 22. Bg3 {[%clk
0:00:11.8]} 22... Ng5 {[%clk 0:01:29.6]} 23. Nfd6 {[%clk 0:00:08.4]} 23... Bxd6
{[%clk 0:01:28.9]} 24. Nxd6 {[%clk 0:00:08.9]} 24... Rf8 {[%clk 0:01:27.3]} 25.
h4 {[%clk 0:00:06.1]} 25... Nf7 {[%clk 0:01:23]} 26. Nxf7+ {[%clk 0:00:05.4]}
26... Qxf7 {[%clk 0:01:22.3]} 27. f3 {[%clk 0:00:05.4]} 27... Be6 {[%clk
0:01:21.4]} 28. Rd2 {[%clk 0:00:04.2]} 28... Rac8 {[%clk 0:01:17.5]} 29. Rfd1
{[%clk 0:00:04.5]} 29... c5 {[%clk 0:01:17.1]} 30. Qb2 {[%clk 0:00:03.8]} 30...
b6 {[%clk 0:01:13]} 31. Bd6 {[%clk 0:00:03]} 31... Rfe8 {[%clk 0:01:12.6]} 32.
Bf4 {[%clk 0:00:01.6]} 32... c4 {[%clk 0:01:11.4]} 33. Qc3 {[%clk 0:00:02.1]}
33... b5 {[%clk 0:01:09.8]} 34. a3 {[%clk 0:00:02.6]} 34... Qb7 {[%clk
0:01:06.6]} 35. Be3 {[%clk 0:00:02.9]} 35... Ra8 {[%clk 0:00:51.5]} 36. h5
{[%clk 0:00:03.4]} 36... a5 {[%clk 0:00:50.3]} 37. h6 {[%clk 0:00:03.3]} 37...
b4 {[%clk 0:00:48.1]} 38. hxg7+ {[%clk 0:00:03.9]} 38... Kxg7 {[%clk 0:00:47.9]}
39. axb4 {[%clk 0:00:04.4]} 39... axb4 {[%clk 0:00:48.2]} 40. Qd4 {[%clk
0:00:04.5]} 40... c3 {[%clk 0:00:46.8]} 41. Rf2 {[%clk 0:00:04.5]} 41... Rad8
{[%clk 0:00:41]} 42. Qxd8 {[%clk 0:00:03.7]} 42... Rxd8 {[%clk 0:00:41.9]} 43.
Rxd8 {[%clk 0:00:04]} 43... b3 {[%clk 0:00:40.3]} 44. e5 {[%clk 0:00:03.7]}
44... b2 {[%clk 0:00:39.5]} 45. exf6+ {[%clk 0:00:04.2]} 45... Kf7 {[%clk
0:00:38]} 46. Rd1 {[%clk 0:00:02.1]} 46... b1=Q {[%clk 0:00:37.8]} 47. Rxb1
{[%clk 0:00:02.7]} 47... Qxb1+ {[%clk 0:00:37.8]} 48. Kh2 {[%clk 0:00:03.4]}
48... c2 {[%clk 0:00:38]} 49. Rf1 {[%clk 0:00:02.3]} 49... Qxf1 {[%clk
0:00:37.3]} 0-1

[Event "*** Titled Tuesday Blitz"]
[Site "Chess.com"]
[Date "2020.03.03"]
[Round "3"]
[White "DonPreuss"]
[Black "Babas"]
[Result "0-1"]
[WhiteElo "2186"]
[BlackElo "2386"]
[TimeControl "180+1"]
[EndTime "9:29:56 PST"]
[Termination "Babas won by checkmate"]

1. d4 {[%clk 0:03:00.9]} 1... Nf6 {[%clk 0:02:58.9]} 2. Nc3 {[%clk 0:03:00.4]}
2... d5 {[%clk 0:02:54.3]} 3. e4 {[%clk 0:03:00.5]} 3... dxe4 {[%clk 0:02:53.1]}
4. f3 {[%clk 0:03:00.9]} 4... exf3 {[%clk 0:02:53.7]} 5. Nxf3 {[%clk 0:03:01.6]}
5... Bg4 {[%clk 0:02:53.9]} 6. h3 {[%clk 0:03:01.4]} 6... Bh5 {[%clk 0:02:53.8]}
7. g4 {[%clk 0:03:01.1]} 7... Bg6 {[%clk 0:02:54.2]} 8. Ne5 {[%clk 0:03:01.7]}
8... e6 {[%clk 0:02:53]} 9. Qf3 {[%clk 0:03:01.4]} 9... c6 {[%clk 0:02:53]} 10.
g5 {[%clk 0:02:58.8]} 10... Nd5 {[%clk 0:02:36.5]} 11. Bd3 {[%clk 0:02:57.5]}
11... Qc7 {[%clk 0:02:02]} 12. Nxd5 {[%clk 0:02:43.2]} 12... cxd5 {[%clk
0:01:58.1]} 13. Bf4 {[%clk 0:02:42.1]} 13... Bd6 {[%clk 0:01:58.1]} 14. O-O-O
{[%clk 0:02:34.7]} 14... Nc6 {[%clk 0:01:54.6]} 15. Bxg6 {[%clk 0:02:05.5]}
15... hxg6 {[%clk 0:01:51.1]} 16. Rhf1 {[%clk 0:01:53.9]} 16... Rf8 {[%clk
0:01:27.6]} 17. Rfe1 {[%clk 0:01:39.5]} 17... O-O-O {[%clk 0:01:16.5]} 18. Rd3
{[%clk 0:01:16.3]} 18... Kb8 {[%clk 0:01:07.7]} 19. Kb1 {[%clk 0:01:04.6]} 19...
Ka8 {[%clk 0:01:05.3]} 20. Nxc6 {[%clk 0:01:00.1]} 20... bxc6 {[%clk 0:00:53.6]}
21. Bxd6 {[%clk 0:00:56]} 21... Qxd6 {[%clk 0:00:48.7]} 22. Rc3 {[%clk
0:00:46.1]} 22... Rd7 {[%clk 0:00:47.4]} 23. Rc5 {[%clk 0:00:45.8]} 23... Rb8
{[%clk 0:00:46.3]} 24. Re3 {[%clk 0:00:45.5]} 24... Rdb7 {[%clk 0:00:45.4]} 25.
Rb3 {[%clk 0:00:45.4]} 25... e5 {[%clk 0:00:37.5]} 26. Qc3 {[%clk 0:00:40.2]}
26... exd4 {[%clk 0:00:19.4]} 27. Qxd4 {[%clk 0:00:40.4]} 27... Rxb3 {[%clk
0:00:18.7]} 28. axb3 {[%clk 0:00:38.3]} 28... f6 {[%clk 0:00:19.1]} 29. Qc3
{[%clk 0:00:35.7]} 29... Rb6 {[%clk 0:00:18.9]} 30. b4 {[%clk 0:00:30.8]} 30...
Kb7 {[%clk 0:00:18.5]} 31. Qa3 {[%clk 0:00:22.3]} 31... Rb5 {[%clk 0:00:16.3]}
32. Rxb5+ {[%clk 0:00:19.1]} 32... cxb5 {[%clk 0:00:17.2]} 33. Qa5 {[%clk
0:00:18.9]} 33... a6 {[%clk 0:00:17.6]} 34. c3 {[%clk 0:00:19.1]} 34... f5
{[%clk 0:00:17.2]} 35. Qa3 {[%clk 0:00:16.3]} 35... d4 {[%clk 0:00:17.5]} 36.
Qb3 {[%clk 0:00:15.9]} 36... d3 {[%clk 0:00:17]} 37. Qd1 {[%clk 0:00:15.8]}
37... Qd5 {[%clk 0:00:16.6]} 38. Qd2 {[%clk 0:00:13.8]} 38... Qe4 {[%clk
0:00:16]} 39. b3 {[%clk 0:00:12.7]} 39... f4 {[%clk 0:00:16.2]} 40. Kc1 {[%clk
0:00:11.7]} 40... f3 {[%clk 0:00:16.4]} 41. Qf2 {[%clk 0:00:05.7]} 41... Qe2
{[%clk 0:00:14.1]} 42. Qd4 {[%clk 0:00:02.7]} 42... Qc2# {[%clk 0:00:13.1]} 0-1

[Event "*** Titled Tuesday Blitz"]
[Site "Chess.com"]
[Date "2020.03.03"]
[Round "3"]
[White "Bulldog167"]
[Black "Indianlad"]
[Result "1/2-1/2"]
[WhiteElo "2741"]
[BlackElo "2952"]
[TimeControl "180+1"]
[EndTime "9:30:05 PST"]
[Termination "Game drawn - insufficient material"]

1. d4 {[%clk 0:03:00.9]} 1... Nf6 {[%clk 0:03:00.6]} 2. c4 {[%clk 0:03:01.2]}
2... g6 {[%clk 0:03:01.2]} 3. Nc3 {[%clk 0:02:59.7]} 3... Bg7 {[%clk 0:03:01.8]}
4. e4 {[%clk 0:03:00.2]} 4... O-O {[%clk 0:03:02.5]} 5. h3 {[%clk 0:03:00.6]}
5... c5 {[%clk 0:03:03]} 6. d5 {[%clk 0:03:00.5]} 6... d6 {[%clk 0:03:03.7]} 7.
Nf3 {[%clk 0:03:00.2]} 7... Na6 {[%clk 0:03:02.8]} 8. Bd3 {[%clk 0:02:56.9]}
8... e6 {[%clk 0:03:03.3]} 9. O-O {[%clk 0:02:56.7]} 9... e5 {[%clk 0:03:03.8]}
10. a3 {[%clk 0:02:45.4]} 10... Nh5 {[%clk 0:03:03.9]} 11. Re1 {[%clk
0:02:44.7]} 11... Nf4 {[%clk 0:03:02.6]} 12. Bxf4 {[%clk 0:02:43.6]} 12... exf4
{[%clk 0:03:02.5]} 13. e5 {[%clk 0:02:44.3]} 13... dxe5 {[%clk 0:02:55.9]} 14.
Nxe5 {[%clk 0:02:45.2]} 14... Nc7 {[%clk 0:02:51.9]} 15. Qd2 {[%clk 0:02:38.7]}
15... g5 {[%clk 0:02:13]} 16. Qc2 {[%clk 0:02:15.4]} 16... h6 {[%clk 0:02:12.8]}
17. Bh7+ {[%clk 0:02:14.7]} 17... Kh8 {[%clk 0:02:12.9]} 18. Bf5 {[%clk
0:02:14.8]} 18... Ne8 {[%clk 0:02:12.3]} 19. Bxc8 {[%clk 0:02:11.4]} 19... Rxc8
{[%clk 0:02:13.2]} 20. Rad1 {[%clk 0:01:50.6]} 20... Nd6 {[%clk 0:02:12.9]} 21.
Nb5 {[%clk 0:01:50.6]} 21... a6 {[%clk 0:01:52]} 22. Nxd6 {[%clk 0:01:48.5]}
22... Qxd6 {[%clk 0:01:52.9]} 23. Qf5 {[%clk 0:01:48.2]} 23... Kg8 {[%clk
0:01:53.5]} 24. Re2 {[%clk 0:01:40.2]} 24... Rce8 {[%clk 0:01:21.6]} 25. Rde1
{[%clk 0:01:38.9]} 25... Re7 {[%clk 0:01:21.7]} 26. Nd3 {[%clk 0:01:07.4]} 26...
Rxe2 {[%clk 0:01:21.9]} 27. Rxe2 {[%clk 0:01:07.7]} 27... b5 {[%clk 0:01:22.8]}
28. b3 {[%clk 0:01:01.3]} 28... Rb8 {[%clk 0:01:23.2]} 29. Ne5 {[%clk
0:00:56.7]} 29... Bxe5 {[%clk 0:01:08.3]} 30. Qxe5 {[%clk 0:00:56.2]} 30... Qxe5
{[%clk 0:01:08.7]} 31. Rxe5 {[%clk 0:00:57.1]} 31... bxc4 {[%clk 0:01:09.4]} 32.
bxc4 {[%clk 0:00:57.6]} 32... Rb1+ {[%clk 0:01:09.9]} 33. Kh2 {[%clk 0:00:58.1]}
33... Rc1 {[%clk 0:01:05.1]} 34. d6 {[%clk 0:00:52.8]} 34... Rd1 {[%clk
0:01:05.1]} 35. Rxc5 {[%clk 0:00:43.2]} 35... Rxd6 {[%clk 0:01:04.5]} 36. Ra5
{[%clk 0:00:41.7]} 36... Kg7 {[%clk 0:01:00.7]} 37. f3 {[%clk 0:00:27.3]} 37...
Rd4 {[%clk 0:00:57.3]} 38. Rxa6 {[%clk 0:00:26.2]} 38... Rxc4 {[%clk 0:00:57.4]}
39. h4 {[%clk 0:00:25.6]} 39... Rc1 {[%clk 0:00:47.1]} 40. hxg5 {[%clk 0:00:25]}
40... hxg5 {[%clk 0:00:47.2]} 41. a4 {[%clk 0:00:23.7]} 41... f5 {[%clk
0:00:44.7]} 42. Rb6 {[%clk 0:00:19.9]} 42... g4 {[%clk 0:00:44]} 43. fxg4 {[%clk
0:00:20]} 43... fxg4 {[%clk 0:00:44.4]} 44. Rb4 {[%clk 0:00:18.6]} 44... Rf1
{[%clk 0:00:29.9]} 45. g3 {[%clk 0:00:15.4]} 45... Rf2+ {[%clk 0:00:23.1]} 46.
Kg1 {[%clk 0:00:15.3]} 46... fxg3 {[%clk 0:00:23.6]} 47. Rxg4+ {[%clk
0:00:15.5]} 47... Kf6 {[%clk 0:00:24.3]} 48. Rxg3 {[%clk 0:00:15.7]} 48... Ra2
{[%clk 0:00:25.2]} 49. Rg4 {[%clk 0:00:14.9]} 49... Ke5 {[%clk 0:00:25.8]} 50.
Rh4 {[%clk 0:00:15.2]} 50... Kd5 {[%clk 0:00:25.7]} 51. a5 {[%clk 0:00:15.6]}
51... Kc5 {[%clk 0:00:25.6]} 52. Rh5+ {[%clk 0:00:15]} 52... Kb4 {[%clk
0:00:26.2]} 53. Kf1 {[%clk 0:00:15.3]} 53... Rxa5 {[%clk 0:00:26.4]} 54. Rxa5
{[%clk 0:00:16.2]} 54... Kxa5 {[%clk 0:00:27.3]} 1/2-1/2

[Event "*** Titled Tuesday Blitz"]
[Site "Chess.com"]
[Date "2020.03.03"]
[Round "3"]
[White "Irishchessman16"]
[Black "Philosopherrr"]
[Result "0-1"]
[WhiteElo "2183"]
[BlackElo "2385"]
[TimeControl "180+1"]
[EndTime "9:30:06 PST"]
[Termination "Philosopherrr won on time"]

1. e4 {[%clk 0:03:00.9]} 1... e5 {[%clk 0:02:56.7]} 2. Nf3 {[%clk 0:02:59.3]}
2... Nc6 {[%clk 0:02:57.4]} 3. d4 {[%clk 0:02:59.2]} 3... exd4 {[%clk
0:02:57.2]} 4. Nxd4 {[%clk 0:03:00.1]} 4... Qf6 {[%clk 0:02:55.8]} 5. Nf3 {[%clk
0:02:54]} 5... Bd6 {[%clk 0:02:53.1]} 6. Nc3 {[%clk 0:02:52.3]} 6... Nge7 {[%clk
0:02:51.6]} 7. Nb5 {[%clk 0:02:51]} 7... Bb4+ {[%clk 0:02:45.2]} 8. Bd2 {[%clk
0:02:50.4]} 8... Bxd2+ {[%clk 0:02:36.5]} 9. Qxd2 {[%clk 0:02:50]} 9... O-O
{[%clk 0:02:37.4]} 10. O-O-O {[%clk 0:02:48.7]} 10... d5 {[%clk 0:02:23.5]} 11.
exd5 {[%clk 0:02:34.4]} 11... Ne5 {[%clk 0:02:22.2]} 12. Nxc7 {[%clk 0:02:28.2]}
12... Nxf3 {[%clk 0:02:20.6]} 13. gxf3 {[%clk 0:02:27.8]} 13... Rb8 {[%clk
0:02:19.6]} 14. d6 {[%clk 0:02:26.7]} 14... Nc6 {[%clk 0:01:28.3]} 15. Bg2
{[%clk 0:01:24.1]} 15... Bd7 {[%clk 0:01:20.7]} 16. Rhe1 {[%clk 0:01:21.4]}
16... Rbd8 {[%clk 0:01:16.8]} 17. Nd5 {[%clk 0:01:14.3]} 17... Qh4 {[%clk
0:01:12]} 18. Re4 {[%clk 0:00:53.9]} 18... Qh5 {[%clk 0:00:51.6]} 19. f4 {[%clk
0:00:30.6]} 19... Be6 {[%clk 0:00:45.8]} 20. Nc7 {[%clk 0:00:23.1]} 20... Bf5
{[%clk 0:00:40.7]} 21. Re5 {[%clk 0:00:20.2]} 21... Qg6 {[%clk 0:00:37.5]} 22.
Bxc6 {[%clk 0:00:18.9]} 22... bxc6 {[%clk 0:00:36.9]} 23. Re3 {[%clk 0:00:18]}
23... Qf6 {[%clk 0:00:30.3]} 24. Rg3 {[%clk 0:00:14.8]} 24... Rb8 {[%clk
0:00:29.1]} 25. c3 {[%clk 0:00:12.4]} 25... Rfd8 {[%clk 0:00:27.6]} 26. Qd4
{[%clk 0:00:12.2]} 26... Qh6 {[%clk 0:00:21.6]} 27. Rdg1 {[%clk 0:00:08.9]}
27... g6 {[%clk 0:00:20.5]} 28. h4 {[%clk 0:00:07.5]} 28... c5 {[%clk
0:00:20.1]} 29. Qxc5 {[%clk 0:00:07]} 29... Qxf4+ {[%clk 0:00:20]} 30. Qe3
{[%clk 0:00:05.9]} 30... Qxd6 {[%clk 0:00:19.6]} 31. h5 {[%clk 0:00:05]} 31...
Qxc7 {[%clk 0:00:19.5]} 32. hxg6 {[%clk 0:00:05.2]} 32... hxg6 {[%clk
0:00:19.4]} 33. Rh1 {[%clk 0:00:03.4]} 33... Rd3 {[%clk 0:00:19]} 34. Qh6 {[%clk
0:00:03]} 34... Qe5 {[%clk 0:00:14.4]} 35. Qh7+ {[%clk 0:00:03.1]} 35... Kf8
{[%clk 0:00:14.5]} 36. Rxd3 {[%clk 0:00:03.1]} 36... Ke7 {[%clk 0:00:10.4]} 37.
Re3 {[%clk 0:00:01.7]} 37... Be4 {[%clk 0:00:10.9]} 38. Qh4+ {[%clk 0:00:01.2]}
38... g5 {[%clk 0:00:10.8]} 39. Qxe4 {[%clk 0:00:01.5]} 39... f6 {[%clk
0:00:10.3]} 40. Qxe5+ {[%clk 0:00:01]} 40... fxe5 {[%clk 0:00:11.2]} 0-1

[Event "*** Titled Tuesday Blitz"]
[Site "Chess.com"]
[Date "2020.03.03"]
[Round "3"]
[White "bilelou"]
[Black "GM_dmitrij"]
[Result "0-1"]
[WhiteElo "2585"]
[BlackElo "2821"]
[TimeControl "180+1"]
[EndTime "9:30:10 PST"]
[Termination "GM_dmitrij won by resignation"]

1. e4 {[%clk 0:03:00.9]} 1... e5 {[%clk 0:02:59.1]} 2. Nf3 {[%clk 0:03:01]} 2...
Nc6 {[%clk 0:02:59.6]} 3. Bb5 {[%clk 0:03:01.4]} 3... a6 {[%clk 0:02:59.8]} 4.
Ba4 {[%clk 0:03:00.1]} 4... Nf6 {[%clk 0:03:00.1]} 5. O-O {[%clk 0:03:00.7]}
5... Bc5 {[%clk 0:03:00]} 6. c3 {[%clk 0:02:59.1]} 6... b5 {[%clk 0:03:00.2]} 7.
Bb3 {[%clk 0:02:56.9]} 7... d6 {[%clk 0:03:00.4]} 8. a4 {[%clk 0:02:55.4]} 8...
b4 {[%clk 0:02:59.7]} 9. d4 {[%clk 0:02:53.9]} 9... Ba7 {[%clk 0:02:59.6]} 10.
a5 {[%clk 0:02:50.7]} 10... O-O {[%clk 0:02:53.7]} 11. h3 {[%clk 0:02:49.2]}
11... Rb8 {[%clk 0:02:50.3]} 12. Bc2 {[%clk 0:02:21.1]} 12... Re8 {[%clk
0:02:43.6]} 13. Re1 {[%clk 0:02:11.7]} 13... Bd7 {[%clk 0:02:39.4]} 14. Bg5
{[%clk 0:02:07.2]} 14... h6 {[%clk 0:02:38.5]} 15. Bh4 {[%clk 0:02:07.1]} 15...
g5 {[%clk 0:02:32.3]} 16. Bg3 {[%clk 0:01:58.4]} 16... Kg7 {[%clk 0:02:14.4]}
17. d5 {[%clk 0:01:48.6]} 17... Ne7 {[%clk 0:02:12.7]} 18. c4 {[%clk 0:01:42.2]}
18... Ng6 {[%clk 0:02:10.9]} 19. Nbd2 {[%clk 0:01:41.8]} 19... Nh5 {[%clk
0:02:09.5]} 20. Nf1 {[%clk 0:01:41.7]} 20... Qf6 {[%clk 0:02:00.4]} 21. Ne3
{[%clk 0:01:34.5]} 21... Nxg3 {[%clk 0:01:40.1]} 22. fxg3 {[%clk 0:01:34.1]}
22... Ne7 {[%clk 0:01:41]} 23. Nh2 {[%clk 0:01:32.1]} 23... Qg6 {[%clk
0:01:40.9]} 24. g4 {[%clk 0:01:22.9]} 24... Rh8 {[%clk 0:01:34.8]} 25. Kh1
{[%clk 0:01:09.5]} 25... b3 {[%clk 0:01:32.9]} 26. Bd3 {[%clk 0:01:08.2]} 26...
h5 {[%clk 0:01:25.9]} 27. gxh5 {[%clk 0:01:07.7]} 27... Qxh5 {[%clk 0:01:26]}
28. Be2 {[%clk 0:01:06.4]} 28... Qg6 {[%clk 0:01:18.9]} 29. Bg4 {[%clk
0:01:06.4]} 29... f5 {[%clk 0:00:59]} 30. exf5 {[%clk 0:01:04.3]} 30... Nxf5
{[%clk 0:00:59.9]} 31. Nxf5+ {[%clk 0:00:57.1]} 31... Bxf5 {[%clk 0:01:00.8]}
32. Rf1 {[%clk 0:00:51.1]} 32... Bc2 {[%clk 0:00:51.9]} 33. Qd2 {[%clk
0:00:48.5]} 33... Rbf8 {[%clk 0:00:51.8]} 34. Nf3 {[%clk 0:00:35.2]} 34... Rf4
{[%clk 0:00:51.6]} 35. Nh2 {[%clk 0:00:23.1]} 35... Rhf8 {[%clk 0:00:50.2]} 36.
Rxf4 {[%clk 0:00:20.3]} 36... Rxf4 {[%clk 0:00:51.1]} 37. Qb4 {[%clk 0:00:19]}
37... Bd4 {[%clk 0:00:47.2]} 38. Qb7 {[%clk 0:00:17.7]} 38... Bxb2 {[%clk
0:00:45.5]} 39. Rg1 {[%clk 0:00:15.8]} 39... Bd4 {[%clk 0:00:45]} 40. Re1 {[%clk
0:00:15.2]} 40... b2 {[%clk 0:00:43]} 41. Qxc7+ {[%clk 0:00:14.3]} 41... Rf7
{[%clk 0:00:43]} 42. Qb8 {[%clk 0:00:14]} 42... b1=Q {[%clk 0:00:42.3]} 43. Rxb1
{[%clk 0:00:14.4]} 43... Bxb1 {[%clk 0:00:43.2]} 44. Nf3 {[%clk 0:00:14.8]}
44... Be4 {[%clk 0:00:32.3]} 45. Nd2 {[%clk 0:00:12.1]} 45... Bf5 {[%clk
0:00:27.2]} 46. Bf3 {[%clk 0:00:10.8]} 46... e4 {[%clk 0:00:26.7]} 47. Be2
{[%clk 0:00:10.7]} 47... g4 {[%clk 0:00:25.9]} 48. Qb3 {[%clk 0:00:08.5]} 48...
gxh3 {[%clk 0:00:25]} 49. gxh3 {[%clk 0:00:09.4]} 49... e3 {[%clk 0:00:24.4]}
0-1